[Event "Titled Tuesday Blitz April 12 Early 2022"]
[White "Almeida Junior, Alvaro Alves de"]
[Black "Hasangatin, Ramil"]
[WhiteFideId "2149974"]
[BlackFideId "4122160"]
[WhiteElo "2086"]
[BlackElo "2375"]
[Result "0-1"]
[Round "02"]
[TimeControl "180+1"]
[Date "2022.04.13"]
[WhiteClock "0:00:03"]
[BlackClock "0:01:48"]

1. e4 {[%clk 0:03:00]}  c5 {[%clk 0:02:54]} 2. Nf3 {[%clk 0:03:00]}  Nc6 {[%clk 0:02:53]} 3. d4 {[%clk 0:02:58]}  cxd4 {[%clk 0:02:53]} 4. Nxd4 {[%clk 0:02:59]}  Nf6 {[%clk 0:02:53]} 5. Nc3 {[%clk 0:02:58]}  e6 {[%clk 0:02:53]} 6. g3 {[%clk 0:02:52]}  d5 {[%clk 0:02:52]} 7. Nxc6 {[%clk 0:02:41]}  bxc6 {[%clk 0:02:51]} 8. exd5 {[%clk 0:02:42]}  cxd5 {[%clk 0:02:51]} 9. Bg2 {[%clk 0:02:42]}  Ba6 {[%clk 0:02:52]} 10. Ne2 {[%clk 0:02:38]}  Bc5 {[%clk 0:02:47]} 11. O-O {[%clk 0:02:34]}  Qb6 {[%clk 0:02:48]} 12. c3 {[%clk 0:02:06]}  Ne4 {[%clk 0:02:45]} 13. Bxe4 {[%clk 0:01:41]}  dxe4 {[%clk 0:02:46]} 14. b4 {[%clk 0:01:42]}  Be7 {[%clk 0:02:42]} 15. Be3 {[%clk 0:01:34]}  Qb5 {[%clk 0:02:40]} 16. Re1 {[%clk 0:01:24]}  Rd8 {[%clk 0:02:40]} 17. Nd4 {[%clk 0:01:22]}  Qd7 {[%clk 0:02:36]} 18. Qg4 {[%clk 0:01:17]}  O-O {[%clk 0:02:30]} 19. Rad1 {[%clk 0:00:57]}  f5 {[%clk 0:02:28]} 20. Qh5 {[%clk 0:00:57]}  Bd3 {[%clk 0:02:28]} 21. Nb3 {[%clk 0:00:50]}  Bf6 {[%clk 0:02:23]} 22. Nc5 {[%clk 0:00:46]}  Qd5 {[%clk 0:02:22]} 23. Nxd3 {[%clk 0:00:38]}  exd3 {[%clk 0:02:22]} 24. Bd4 {[%clk 0:00:30]}  e5 {[%clk 0:02:11]} 25. Bxa7 {[%clk 0:00:18]}  e4 {[%clk 0:02:09]} 26. Bc5 {[%clk 0:00:15]}  g6 {[%clk 0:02:07]} 27. Qh6 {[%clk 0:00:14]}  Bg7 {[%clk 0:02:07]} 28. Qe3 {[%clk 0:00:13]}  Rfe8 {[%clk 0:02:05]} 29. Bd4 {[%clk 0:00:09]}  Bxd4 {[%clk 0:02:04]} 30. Qxd4 {[%clk 0:00:10]}  Qxd4 {[%clk 0:02:05]} 31. cxd4 {[%clk 0:00:11]}  Rxd4 {[%clk 0:02:05]} 32. Re3 {[%clk 0:00:10]}  Ra8 {[%clk 0:01:59]} 33. f3 {[%clk 0:00:10]}  Rxb4 {[%clk 0:01:58]} 34. fxe4 {[%clk 0:00:10]}  fxe4 {[%clk 0:01:58]} 35. Rd2 {[%clk 0:00:10]}  Rc8 {[%clk 0:01:56]} 36. Kf2 {[%clk 0:00:08]}  Rc2 {[%clk 0:01:52]} 37. Rxc2 {[%clk 0:00:08]}  dxc2 {[%clk 0:01:52]} 38. Rc3 {[%clk 0:00:08]}  Rb2 {[%clk 0:01:53]} 39. Ke3 {[%clk 0:00:07]}  Rxa2 {[%clk 0:01:52]} 40. Kxe4 {[%clk 0:00:07]}  Kg7 {[%clk 0:01:48]} 41. Kd3 {[%clk 0:00:07]}  Kf6 {[%clk 0:01:49]} 42. Rxc2 {[%clk 0:00:06]}  Rxc2 {[%clk 0:01:48]} 43. Kxc2 {[%clk 0:00:07]}  Kf5 {[%clk 0:01:49]} 44. Kd3 {[%clk 0:00:06]}  Kg4 {[%clk 0:01:49]} 45. Ke3 {[%clk 0:00:05]}  Kh3 {[%clk 0:01:49]} 46. Kf4 {[%clk 0:00:05]}  Kxh2 {[%clk 0:01:49]} 47. Kg4 {[%clk 0:00:04]}  h6 {[%clk 0:01:49]} 48. Kh4 {[%clk 0:00:03]}  Kg2 {[%clk 0:01:49]} 49. g4 {[%clk 0:00:03]}  g5+ {[%clk 0:01:46]} 50. Kh5 {[%clk 0:00:03]}  Kg3 {[%clk 0:01:47]} 51. Kxh6 {[%clk 0:00:03]}  Kxg4 {[%clk 0:01:48]} 0-1


[Site "https://www.chess.com"]

[Event "Titled Tuesday Blitz April 12 Early 2022"]
[White "Bas Mas, Jose Joaquin"]
[Black "Bilan, Danila"]
[WhiteFideId "22219064"]
[BlackFideId "24161918"]
[WhiteElo "2212"]
[BlackElo "2164"]
[Result "0-1"]
[Round "02"]
[TimeControl "180+1"]
[Date "2022.04.13"]
[WhiteClock "0:00:54"]
[BlackClock "0:00:42"]

1. e4 {[%clk 0:03:00]}  c6 {[%clk 0:02:59]} 2. Nc3 {[%clk 0:03:00]}  d5 {[%clk 0:03:00]} 3. Nf3 {[%clk 0:03:00]}  Bg4 {[%clk 0:02:59]} 4. d4 {[%clk 0:03:01]}  dxe4 {[%clk 0:02:58]} 5. Nxe4 {[%clk 0:03:00]}  e6 {[%clk 0:02:58]} 6. Be3 {[%clk 0:02:47]}  Be7 {[%clk 0:02:46]} 7. h3 {[%clk 0:02:46]}  Bh5 {[%clk 0:02:46]} 8. Ng3 {[%clk 0:02:45]}  Bg6 {[%clk 0:02:45]} 9. Be2 {[%clk 0:02:45]}  Nf6 {[%clk 0:02:44]} 10. O-O {[%clk 0:02:44]}  Nbd7 {[%clk 0:02:44]} 11. c4 {[%clk 0:02:42]}  O-O {[%clk 0:02:43]} 12. Qb3 {[%clk 0:02:40]}  Qc7 {[%clk 0:02:35]} 13. Rac1 {[%clk 0:02:33]}  e5 {[%clk 0:02:08]} 14. d5 {[%clk 0:02:32]}  Nc5 {[%clk 0:01:47]} 15. Bxc5 {[%clk 0:02:28]}  Bxc5 {[%clk 0:01:47]} 16. Rfd1 {[%clk 0:02:22]}  Rad8 {[%clk 0:01:32]} 17. Nh4 {[%clk 0:02:11]}  Rfe8 {[%clk 0:01:26]} 18. Nxg6 {[%clk 0:02:09]}  hxg6 {[%clk 0:01:27]} 19. Qa4 {[%clk 0:01:49]}  e4 {[%clk 0:01:16]} 20. Nh1 {[%clk 0:01:41]}  e3 {[%clk 0:01:10]} 21. f3 {[%clk 0:01:37]}  Qe5 {[%clk 0:01:05]} 22. Qc2 {[%clk 0:01:33]}  Nh5 {[%clk 0:01:00]} 23. a3 {[%clk 0:01:31]}  Bd6 {[%clk 0:00:58]} 24. g3 {[%clk 0:01:09]}  Nxg3 {[%clk 0:00:55]} 25. Bf1 {[%clk 0:01:10]}  e2 {[%clk 0:00:51]} 26. Re1 {[%clk 0:01:01]}  exf1=Q+ {[%clk 0:00:46]} 27. Rxf1 {[%clk 0:01:02]}  Ne2+ {[%clk 0:00:43]} 28. Kf2 {[%clk 0:00:54]}  Qh2+ {[%clk 0:00:42]} 0-1


[Site "https://www.chess.com"]

[Event "Titled Tuesday Blitz April 12 Early 2022"]
[White "Bettalli, Francesco"]
[Black "Marcinczyk, Monika"]
[WhiteFideId "2816453"]
[BlackFideId "1192051"]
[WhiteElo "2216"]
[BlackElo "1786"]
[Result "1-0"]
[Round "02"]
[TimeControl "180+1"]
[Date "2022.04.13"]
[WhiteClock "0:00:56"]
[BlackClock "0:00:01"]

1. d4 {[%clk 0:03:00]}  d5 {[%clk 0:02:58]} 2. Nc3 {[%clk 0:03:01]}  Nf6 {[%clk 0:02:57]} 3. Bf4 {[%clk 0:03:01]}  e6 {[%clk 0:02:54]} 4. Nb5 {[%clk 0:02:57]}  Bb4+ {[%clk 0:02:51]} 5. c3 {[%clk 0:02:57]}  Ba5 {[%clk 0:02:51]} 6. e3 {[%clk 0:02:56]}  O-O {[%clk 0:02:45]} 7. Nf3 {[%clk 0:02:54]}  a6 {[%clk 0:02:39]} 8. Na3 {[%clk 0:02:55]}  Nbd7 {[%clk 0:02:30]} 9. Bd3 {[%clk 0:02:53]}  Re8 {[%clk 0:02:29]} 10. O-O {[%clk 0:02:52]}  c5 {[%clk 0:02:27]} 11. dxc5 {[%clk 0:02:51]}  Nxc5 {[%clk 0:02:26]} 12. Bc2 {[%clk 0:02:51]}  Bc7 {[%clk 0:02:25]} 13. Be5 {[%clk 0:02:49]}  Nfe4 {[%clk 0:02:16]} 14. Qd4 {[%clk 0:02:44]}  Bxe5 {[%clk 0:02:14]} 15. Nxe5 {[%clk 0:02:44]}  f6 {[%clk 0:02:13]} 16. Nd3 {[%clk 0:02:38]}  e5 {[%clk 0:02:08]} 17. Qb4 {[%clk 0:02:34]}  Qc7 {[%clk 0:01:55]} 18. Nxc5 {[%clk 0:02:34]}  Nxc5 {[%clk 0:01:52]} 19. Qh4 {[%clk 0:02:32]}  f5 {[%clk 0:01:46]} 20. Rad1 {[%clk 0:02:33]}  Be6 {[%clk 0:01:44]} 21. Bb3 {[%clk 0:02:17]}  Rad8 {[%clk 0:01:40]} 22. Nc2 {[%clk 0:02:16]}  Nxb3 {[%clk 0:01:39]} 23. axb3 {[%clk 0:02:17]}  d4 {[%clk 0:01:31]} 24. exd4 {[%clk 0:02:17]}  Bxb3 {[%clk 0:01:31]} 25. Rc1 {[%clk 0:02:04]}  Bxc2 {[%clk 0:01:31]} 26. Rxc2 {[%clk 0:02:04]}  exd4 {[%clk 0:01:32]} 27. c4 {[%clk 0:01:57]}  d3 {[%clk 0:01:28]} 28. Rd2 {[%clk 0:01:57]}  Re4 {[%clk 0:01:28]} 29. Qg5 {[%clk 0:01:56]}  Qd7 {[%clk 0:01:05]} 30. b3 {[%clk 0:01:50]}  Re2 {[%clk 0:00:58]} 31. Rfd1 {[%clk 0:01:45]}  Qe7 {[%clk 0:00:45]} 32. Qxe7 {[%clk 0:01:30]}  Rxe7 {[%clk 0:00:45]} 33. f3 {[%clk 0:01:29]}  Re3 {[%clk 0:00:38]} 34. Kf2 {[%clk 0:01:29]}  f4 {[%clk 0:00:38]} 35. g3 {[%clk 0:01:29]}  g5 {[%clk 0:00:38]} 36. gxf4 {[%clk 0:01:29]}  gxf4 {[%clk 0:00:38]} 37. Rg1+ {[%clk 0:01:30]}  Kf7 {[%clk 0:00:38]} 38. Rg4 {[%clk 0:01:30]}  Rd4 {[%clk 0:00:38]} 39. Rxf4+ {[%clk 0:01:30]}  Rxf4 {[%clk 0:00:35]} 40. Kxe3 {[%clk 0:01:31]}  Rh4 {[%clk 0:00:35]} 41. Kxd3 {[%clk 0:01:31]}  Ke6 {[%clk 0:00:22]} 42. Ke3 {[%clk 0:01:30]}  b5 {[%clk 0:00:19]} 43. c5 {[%clk 0:01:26]}  Rb4 {[%clk 0:00:14]} 44. Rd6+ {[%clk 0:01:24]}  Ke7 {[%clk 0:00:14]} 45. Rxa6 {[%clk 0:01:21]}  Rxb3+ {[%clk 0:00:14]} 46. Ke4 {[%clk 0:01:22]}  Rc3 {[%clk 0:00:13]} 47. Kd5 {[%clk 0:01:10]}  Rd3+ {[%clk 0:00:12]} 48. Kc6 {[%clk 0:01:09]}  b4 {[%clk 0:00:11]} 49. Ra7+ {[%clk 0:01:09]}  Ke6 {[%clk 0:00:11]} 50. Rxh7 {[%clk 0:01:09]}  b3 {[%clk 0:00:11]} 51. f4 {[%clk 0:01:03]}  b2 {[%clk 0:00:06]} 52. Rb7 {[%clk 0:01:02]}  Rd2 {[%clk 0:00:07]} 53. h4 {[%clk 0:01:02]}  Kf5 {[%clk 0:00:06]} 54. Rb4 {[%clk 0:01:00]}  Kg4 {[%clk 0:00:04]} 55. Kb7 {[%clk 0:00:57]}  Rc2 {[%clk 0:00:01]} 56. c6 {[%clk 0:00:56]}  Kxh4 {[%clk 0:00:01]} 57. c7 {[%clk 0:00:56]} 1-0


[Site "https://www.chess.com"]

[Event "Titled Tuesday Blitz April 12 Early 2022"]
[White "Blokhin, Sofia"]
[Black "Calin, Alexandru"]
[WhiteFideId "4508190"]
[BlackFideId "1222961"]
[WhiteElo "1764"]
[BlackElo "2020"]
[Result "0-1"]
[Round "02"]
[TimeControl "180+1"]
[Date "2022.04.13"]
[WhiteClock "0:00:01"]
[BlackClock "0:00:15"]

1. d4 {[%clk 0:03:00]}  d6 {[%clk 0:03:00]} 2. e4 {[%clk 0:02:59]}  Nf6 {[%clk 0:02:59]} 3. Nc3 {[%clk 0:02:59]}  Nbd7 {[%clk 0:03:00]} 4. f3 {[%clk 0:02:59]}  e5 {[%clk 0:03:00]} 5. d5 {[%clk 0:02:57]}  g6 {[%clk 0:02:54]} 6. Be3 {[%clk 0:02:57]}  Bg7 {[%clk 0:02:54]} 7. Qd2 {[%clk 0:02:57]}  O-O {[%clk 0:02:55]} 8. O-O-O {[%clk 0:02:57]}  a6 {[%clk 0:02:48]} 9. Kb1 {[%clk 0:02:56]}  b5 {[%clk 0:02:48]} 10. g4 {[%clk 0:02:54]}  Nb6 {[%clk 0:02:46]} 11. h4 {[%clk 0:02:53]}  h5 {[%clk 0:02:38]} 12. gxh5 {[%clk 0:02:50]}  Nxh5 {[%clk 0:02:37]} 13. Qf2 {[%clk 0:02:24]}  b4 {[%clk 0:02:33]} 14. Nce2 {[%clk 0:02:22]}  Nc4 {[%clk 0:02:30]} 15. Bc1 {[%clk 0:02:19]}  a5 {[%clk 0:02:30]} 16. Ng3 {[%clk 0:02:15]}  Nxg3 {[%clk 0:02:11]} 17. Qxg3 {[%clk 0:02:12]}  f5 {[%clk 0:01:58]} 18. Bxc4 {[%clk 0:02:08]}  f4 {[%clk 0:01:51]} 19. Qf2 {[%clk 0:02:01]}  a4 {[%clk 0:01:46]} 20. h5 {[%clk 0:01:56]}  g5 {[%clk 0:01:46]} 21. h6 {[%clk 0:01:54]}  Bf6 {[%clk 0:01:46]} 22. Nh3 {[%clk 0:01:40]}  Kh7 {[%clk 0:01:41]} 23. Rdg1 {[%clk 0:01:37]}  Rg8 {[%clk 0:01:41]} 24. Bd2 {[%clk 0:01:14]}  Rb8 {[%clk 0:01:35]} 25. Qe1 {[%clk 0:01:10]}  Bd7 {[%clk 0:01:15]} 26. Bxb4 {[%clk 0:01:02]}  Qc8 {[%clk 0:01:15]} 27. Nf2 {[%clk 0:00:53]}  Qb7 {[%clk 0:01:10]} 28. a3 {[%clk 0:00:52]}  Rg6 {[%clk 0:01:05]} 29. Ng4 {[%clk 0:00:51]}  Bxg4 {[%clk 0:01:05]} 30. Rxg4 {[%clk 0:00:50]}  Rxh6 {[%clk 0:00:57]} 31. Rxh6+ {[%clk 0:00:47]}  Kxh6 {[%clk 0:00:58]} 32. Qh1+ {[%clk 0:00:47]}  Kg6 {[%clk 0:00:56]} 33. Rg2 {[%clk 0:00:35]}  Rh8 {[%clk 0:00:55]} 34. Rh2 {[%clk 0:00:35]}  Rxh2 {[%clk 0:00:55]} 35. Qxh2 {[%clk 0:00:35]}  Qb6 {[%clk 0:00:49]} 36. Qh3 {[%clk 0:00:33]}  Qe3 {[%clk 0:00:46]} 37. Qf5+ {[%clk 0:00:31]}  Kg7 {[%clk 0:00:46]} 38. Qd7+ {[%clk 0:00:29]}  Kh6 {[%clk 0:00:44]} 39. Qf7 {[%clk 0:00:22]}  Bg7 {[%clk 0:00:39]} 40. Bb5 {[%clk 0:00:13]}  Qxf3 {[%clk 0:00:21]} 41. Be8 {[%clk 0:00:11]}  Kh7 {[%clk 0:00:22]} 42. Bd7 {[%clk 0:00:09]}  Qh1+ {[%clk 0:00:19]} 43. Ka2 {[%clk 0:00:08]}  Kh8 {[%clk 0:00:17]} 44. Bf5 {[%clk 0:00:07]}  Qh6 {[%clk 0:00:16]} 45. Qe8+ {[%clk 0:00:07]}  Bf8 {[%clk 0:00:16]} 46. Ba5 {[%clk 0:00:06]}  f3 {[%clk 0:00:17]} 47. Bxc7 {[%clk 0:00:04]}  f2 {[%clk 0:00:16]} 48. Bxd6 {[%clk 0:00:04]}  Qxd6 {[%clk 0:00:16]} 49. Qh5+ {[%clk 0:00:04]}  Qh6 {[%clk 0:00:16]} 50. Qf3 {[%clk 0:00:02]}  Qh4 {[%clk 0:00:16]} 51. Qc3 {[%clk 0:00:01]}  Qf4 {[%clk 0:00:15]} 0-1


[Site "https://www.chess.com"]

[Event "Titled Tuesday Blitz April 12 Early 2022"]
[White "Bluebaum, Matthias"]
[Black "Biletskiy, Danylo"]
[WhiteFideId "24651516"]
[BlackFideId "14155419"]
[WhiteElo "2550"]
[BlackElo "2087"]
[Result "1-0"]
[Round "02"]
[TimeControl "180+1"]
[Date "2022.04.12"]
[WhiteClock "0:00:42"]
[BlackClock "0:00:01"]

1. b3 {[%clk 0:03:00]}  e5 {[%clk 0:02:59]} 2. Bb2 {[%clk 0:03:00]}  d6 {[%clk 0:02:59]} 3. e3 {[%clk 0:03:01]}  Nf6 {[%clk 0:02:58]} 4. c4 {[%clk 0:02:59]}  Nbd7 {[%clk 0:02:58]} 5. g3 {[%clk 0:02:59]}  g6 {[%clk 0:02:58]} 6. Bg2 {[%clk 0:02:59]}  Bg7 {[%clk 0:02:58]} 7. Ne2 {[%clk 0:03:00]}  O-O {[%clk 0:02:58]} 8. O-O {[%clk 0:03:00]}  e4 {[%clk 0:02:53]} 9. d3 {[%clk 0:02:58]}  exd3 {[%clk 0:02:49]} 10. Qxd3 {[%clk 0:02:59]}  Re8 {[%clk 0:02:49]} 11. Nbc3 {[%clk 0:02:58]}  Nc5 {[%clk 0:02:49]} 12. Qd2 {[%clk 0:02:58]}  Bf5 {[%clk 0:02:45]} 13. Nd4 {[%clk 0:02:47]}  Nfe4 {[%clk 0:02:38]} 14. Nxe4 {[%clk 0:02:47]}  Nxe4 {[%clk 0:02:38]} 15. Qc1 {[%clk 0:02:47]}  Bd7 {[%clk 0:02:27]} 16. Qc2 {[%clk 0:02:47]}  f5 {[%clk 0:02:25]} 17. Rad1 {[%clk 0:02:47]}  Qe7 {[%clk 0:02:21]} 18. Rfe1 {[%clk 0:02:46]}  Rad8 {[%clk 0:02:18]} 19. b4 {[%clk 0:02:41]}  c5 {[%clk 0:02:17]} 20. bxc5 {[%clk 0:02:25]}  dxc5 {[%clk 0:02:18]} 21. Nb5 {[%clk 0:02:25]}  Bxb5 {[%clk 0:02:17]} 22. cxb5 {[%clk 0:02:19]}  Bxb2 {[%clk 0:02:16]} 23. Qxb2 {[%clk 0:02:20]}  Rxd1 {[%clk 0:02:15]} 24. Rxd1 {[%clk 0:02:20]}  Rd8 {[%clk 0:02:15]} 25. Qc2 {[%clk 0:01:57]}  Rxd1+ {[%clk 0:02:12]} 26. Qxd1 {[%clk 0:01:58]}  Qd6 {[%clk 0:02:12]} 27. Qa4 {[%clk 0:01:53]}  Qd5 {[%clk 0:01:09]} 28. Bf3 {[%clk 0:01:41]}  c4 {[%clk 0:00:54]} 29. Qxa7 {[%clk 0:01:39]}  c3 {[%clk 0:00:54]} 30. Qb8+ {[%clk 0:01:39]}  Kg7 {[%clk 0:00:49]} 31. Qc7+ {[%clk 0:01:36]}  Kh6 {[%clk 0:00:47]} 32. Bxe4 {[%clk 0:01:37]}  fxe4 {[%clk 0:00:43]} 33. Qxc3 {[%clk 0:01:35]}  Qxb5 {[%clk 0:00:40]} 34. Qf6 {[%clk 0:01:03]}  Qd3 {[%clk 0:00:20]} 35. Qf8+ {[%clk 0:00:59]}  Kh5 {[%clk 0:00:18]} 36. Kg2 {[%clk 0:00:57]}  Qe2 {[%clk 0:00:09]} 37. Qf4 {[%clk 0:00:57]}  g5 {[%clk 0:00:04]} 38. Qxe4 {[%clk 0:00:56]}  Kh6 {[%clk 0:00:04]} 39. Qe6+ {[%clk 0:00:51]}  Kg7 {[%clk 0:00:04]} 40. Qe7+ {[%clk 0:00:50]}  Kg6 {[%clk 0:00:05]} 41. a4 {[%clk 0:00:47]}  Qc2 {[%clk 0:00:03]} 42. Qxb7 {[%clk 0:00:45]}  Qxa4 {[%clk 0:00:02]} 43. Qb6+ {[%clk 0:00:41]}  Kg7 {[%clk 0:00:02]} 44. Qd4+ {[%clk 0:00:41]}  Qxd4 {[%clk 0:00:01]} 45. exd4 {[%clk 0:00:42]}  Kf7 {[%clk 0:00:02]} 46. Kf3 {[%clk 0:00:42]}  Ke6 {[%clk 0:00:02]} 47. Kg4 {[%clk 0:00:43]}  Kf6 {[%clk 0:00:02]} 48. Kh5 {[%clk 0:00:42]}  Kf5 {[%clk 0:00:01]} 49. h3 {[%clk 0:00:42]} 1-0


[Site "https://www.chess.com"]

[Event "Titled Tuesday Blitz April 12 Early 2022"]
[White "Bortnyk, Olexandr"]
[Black "Tregubov, Pavel V."]
[WhiteFideId "14120828"]
[BlackFideId "4115341"]
[WhiteElo "2723"]
[BlackElo "2341"]
[Result "1-0"]
[Round "02"]
[TimeControl "180+1"]
[Date "2022.04.12"]
[WhiteClock "0:00:13"]
[BlackClock "0:00:06"]

1. d4 {[%clk 0:03:00]}  Nf6 {[%clk 0:02:55]} 2. Nc3 {[%clk 0:02:55]}  d5 {[%clk 0:02:53]} 3. Bf4 {[%clk 0:02:54]}  c6 {[%clk 0:02:46]} 4. e3 {[%clk 0:02:48]}  Bf5 {[%clk 0:02:41]} 5. Nf3 {[%clk 0:02:40]}  h6 {[%clk 0:02:38]} 6. Ne5 {[%clk 0:02:39]}  e6 {[%clk 0:02:30]} 7. g4 {[%clk 0:02:34]}  Bh7 {[%clk 0:02:29]} 8. h4 {[%clk 0:02:34]}  Nfd7 {[%clk 0:02:26]} 9. Bd3 {[%clk 0:02:33]}  Nxe5 {[%clk 0:02:13]} 10. Bxe5 {[%clk 0:02:32]}  Bxd3 {[%clk 0:02:11]} 11. Qxd3 {[%clk 0:02:31]}  Nd7 {[%clk 0:02:12]} 12. O-O-O {[%clk 0:02:22]}  Nxe5 {[%clk 0:02:11]} 13. dxe5 {[%clk 0:02:22]}  Bb4 {[%clk 0:02:07]} 14. Ne2 {[%clk 0:02:20]}  Qa5 {[%clk 0:02:06]} 15. a3 {[%clk 0:02:19]}  Be7 {[%clk 0:02:04]} 16. f4 {[%clk 0:02:19]}  O-O-O {[%clk 0:01:59]} 17. f5 {[%clk 0:02:14]}  Qc7 {[%clk 0:01:53]} 18. Qc3 {[%clk 0:02:09]}  f6 {[%clk 0:01:29]} 19. Nf4 {[%clk 0:01:57]}  Qxe5 {[%clk 0:01:24]} 20. Qxe5 {[%clk 0:01:42]}  fxe5 {[%clk 0:01:24]} 21. Nxe6 {[%clk 0:01:43]}  Rdg8 {[%clk 0:01:23]} 22. h5 {[%clk 0:01:13]}  Bg5 {[%clk 0:01:17]} 23. Rhe1 {[%clk 0:01:03]}  Re8 {[%clk 0:01:10]} 24. Nxg7 {[%clk 0:01:02]}  Re7 {[%clk 0:00:51]} 25. Ne6 {[%clk 0:01:02]}  Rxe6 {[%clk 0:00:51]} 26. fxe6 {[%clk 0:01:02]}  d4 {[%clk 0:00:50]} 27. Kd2 {[%clk 0:00:46]}  Re8 {[%clk 0:00:40]} 28. Kd3 {[%clk 0:00:45]}  Bxe3 {[%clk 0:00:36]} 29. Ke4 {[%clk 0:00:45]}  Rxe6 {[%clk 0:00:36]} 30. Rf1 {[%clk 0:00:46]}  Re7 {[%clk 0:00:32]} 31. Rf6 {[%clk 0:00:41]}  Kc7 {[%clk 0:00:29]} 32. b4 {[%clk 0:00:39]}  Kb6 {[%clk 0:00:27]} 33. c3 {[%clk 0:00:33]}  Kb5 {[%clk 0:00:24]} 34. cxd4 {[%clk 0:00:21]}  exd4+ {[%clk 0:00:23]} 35. Kd3 {[%clk 0:00:22]}  Rg7 {[%clk 0:00:20]} 36. Rg6 {[%clk 0:00:21]}  Rf7 {[%clk 0:00:19]} 37. Re1 {[%clk 0:00:18]}  Rf2 {[%clk 0:00:15]} 38. Rxe3 {[%clk 0:00:16]}  dxe3 {[%clk 0:00:15]} 39. Rxh6 {[%clk 0:00:16]}  Ra2 {[%clk 0:00:14]} 40. Kxe3 {[%clk 0:00:16]}  Rxa3+ {[%clk 0:00:15]} 41. Ke4 {[%clk 0:00:14]}  Kxb4 {[%clk 0:00:15]} 42. Rh7 {[%clk 0:00:15]}  b5 {[%clk 0:00:15]} 43. h6 {[%clk 0:00:15]}  c5 {[%clk 0:00:14]} 44. g5 {[%clk 0:00:15]}  c4 {[%clk 0:00:12]} 45. Rh8 {[%clk 0:00:13]}  Rg3 {[%clk 0:00:11]} 46. Kf4 {[%clk 0:00:13]}  Rg1 {[%clk 0:00:09]} 47. h7 {[%clk 0:00:13]}  Rh1 {[%clk 0:00:07]} 48. g6 {[%clk 0:00:13]}  c3 {[%clk 0:00:08]} 49. Rc8 {[%clk 0:00:12]}  Kb3 {[%clk 0:00:08]} 50. h8=Q {[%clk 0:00:12]}  Rxh8 {[%clk 0:00:07]} 51. Rxh8 {[%clk 0:00:13]}  b4 {[%clk 0:00:06]} 52. g7 {[%clk 0:00:13]} 1-0


[Site "https://www.chess.com"]

[Event "Titled Tuesday Blitz April 12 Early 2022"]
[White "Bowden, Karl"]
[Black "Atakhan, Abtin"]
[WhiteFideId "400548"]
[BlackFideId "22502203"]
[WhiteElo "2360"]
[BlackElo "2094"]
[Result "0-1"]
[Round "02"]
[TimeControl "180+1"]
[Date "2022.04.13"]
[WhiteClock "0:00:37"]
[BlackClock "0:00:35"]

1. e4 {[%clk 0:02:57]}  c5 {[%clk 0:02:59]} 2. c3 {[%clk 0:02:57]}  Nf6 {[%clk 0:02:59]} 3. e5 {[%clk 0:02:57]}  Nd5 {[%clk 0:02:59]} 4. d4 {[%clk 0:02:57]}  cxd4 {[%clk 0:03:00]} 5. cxd4 {[%clk 0:02:58]}  d6 {[%clk 0:03:01]} 6. Nf3 {[%clk 0:02:58]}  Nc6 {[%clk 0:03:01]} 7. Bc4 {[%clk 0:02:57]}  Nb6 {[%clk 0:03:01]} 8. Bb5 {[%clk 0:02:54]}  dxe5 {[%clk 0:03:01]} 9. Nxe5 {[%clk 0:02:53]}  Bd7 {[%clk 0:03:02]} 10. Nc3 {[%clk 0:02:47]}  Nxe5 {[%clk 0:02:58]} 11. dxe5 {[%clk 0:02:46]}  Bxb5 {[%clk 0:02:57]} 12. Nxb5 {[%clk 0:02:46]}  Qxd1+ {[%clk 0:02:57]} 13. Kxd1 {[%clk 0:02:46]}  Nd5 {[%clk 0:02:53]} 14. Bd2 {[%clk 0:02:37]}  e6 {[%clk 0:02:50]} 15. Rc1 {[%clk 0:02:34]}  Kd7 {[%clk 0:02:50]} 16. Ke2 {[%clk 0:02:32]}  a6 {[%clk 0:02:50]} 17. Nc3 {[%clk 0:02:27]}  Be7 {[%clk 0:02:14]} 18. Rhd1 {[%clk 0:02:16]}  Rac8 {[%clk 0:02:08]} 19. Be3 {[%clk 0:01:47]}  f6 {[%clk 0:01:09]} 20. exf6 {[%clk 0:01:37]}  Bxf6 {[%clk 0:01:09]} 21. Nxd5 {[%clk 0:01:36]}  exd5 {[%clk 0:01:09]} 22. Rxc8 {[%clk 0:01:32]}  Kxc8 {[%clk 0:01:04]} 23. Rxd5 {[%clk 0:00:58]}  Bxb2 {[%clk 0:01:04]} 24. Bb6 {[%clk 0:00:57]}  Bf6 {[%clk 0:00:58]} 25. Rc5+ {[%clk 0:00:51]}  Kd7 {[%clk 0:00:49]} 26. Rc7+ {[%clk 0:00:51]}  Kd6 {[%clk 0:00:50]} 27. Rxb7 {[%clk 0:00:51]}  Kc6 {[%clk 0:00:50]} 28. Ra7 {[%clk 0:00:41]}  Kxb6 {[%clk 0:00:50]} 29. Rd7 {[%clk 0:00:42]}  Rc8 {[%clk 0:00:48]} 30. h4 {[%clk 0:00:42]}  Rc2+ {[%clk 0:00:47]} 31. Ke3 {[%clk 0:00:42]}  Rxa2 {[%clk 0:00:45]} 32. g4 {[%clk 0:00:42]}  h6 {[%clk 0:00:42]} 33. f4 {[%clk 0:00:39]}  Kc6 {[%clk 0:00:39]} 34. Ra7 {[%clk 0:00:38]}  Kd5 {[%clk 0:00:35]} 35. g5 {[%clk 0:00:37]}  Bd4+ {[%clk 0:00:35]} 0-1


[Site "https://www.chess.com"]

[Event "Titled Tuesday Blitz April 12 Early 2022"]
[White "Broca Jimenez, Fernando"]
[Black "Aaditya Dhingra"]
[WhiteFideId "5104742"]
[BlackFideId "25678191"]
[WhiteElo "2062"]
[BlackElo "1849"]
[Result "0-1"]
[Round "02"]
[TimeControl "180+1"]
[Date "2022.04.13"]
[WhiteClock "0:00:06"]
[BlackClock "0:00:44"]

1. e4 {[%clk 0:03:00]}  c5 {[%clk 0:02:58]} 2. Nf3 {[%clk 0:03:00]}  e6 {[%clk 0:02:58]} 3. d4 {[%clk 0:03:01]}  cxd4 {[%clk 0:02:58]} 4. Nxd4 {[%clk 0:03:01]}  Nc6 {[%clk 0:02:58]} 5. g3 {[%clk 0:03:02]}  Bc5 {[%clk 0:02:49]} 6. Nb3 {[%clk 0:03:02]}  Be7 {[%clk 0:02:45]} 7. Bg2 {[%clk 0:03:01]}  Nf6 {[%clk 0:02:44]} 8. O-O {[%clk 0:03:00]}  O-O {[%clk 0:02:43]} 9. c4 {[%clk 0:03:00]}  d6 {[%clk 0:02:39]} 10. Nc3 {[%clk 0:03:00]}  a6 {[%clk 0:02:36]} 11. Be3 {[%clk 0:02:47]}  Qc7 {[%clk 0:02:28]} 12. Rc1 {[%clk 0:02:45]}  Bd7 {[%clk 0:02:22]} 13. Qd2 {[%clk 0:02:22]}  Ne5 {[%clk 0:02:20]} 14. Ne2 {[%clk 0:01:57]}  Nxc4 {[%clk 0:02:07]} 15. Qd3 {[%clk 0:01:39]}  Rac8 {[%clk 0:02:01]} 16. Nd2 {[%clk 0:01:36]}  b5 {[%clk 0:01:31]} 17. b3 {[%clk 0:01:11]}  Ne5 {[%clk 0:01:30]} 18. Qb1 {[%clk 0:01:12]}  Qb8 {[%clk 0:01:29]} 19. h3 {[%clk 0:01:12]}  Bc6 {[%clk 0:01:24]} 20. f4 {[%clk 0:01:05]}  Ned7 {[%clk 0:01:23]} 21. Nd4 {[%clk 0:00:36]}  Bb7 {[%clk 0:01:22]} 22. Rfd1 {[%clk 0:00:28]}  Nc5 {[%clk 0:01:22]} 23. b4 {[%clk 0:00:26]}  Na4 {[%clk 0:01:19]} 24. Qb3 {[%clk 0:00:23]}  d5 {[%clk 0:01:10]} 25. e5 {[%clk 0:00:18]}  Nd7 {[%clk 0:01:10]} 26. N2f3 {[%clk 0:00:17]}  Rc4 {[%clk 0:01:08]} 27. Nd2 {[%clk 0:00:15]}  Rxb4 {[%clk 0:01:07]} 28. Qc2 {[%clk 0:00:14]}  Rc8 {[%clk 0:01:03]} 29. Qd3 {[%clk 0:00:13]}  Nb2 {[%clk 0:01:02]} 30. Rxc8+ {[%clk 0:00:11]}  Qxc8 {[%clk 0:01:00]} 31. Qb1 {[%clk 0:00:09]}  Nxd1 {[%clk 0:00:59]} 32. Qxd1 {[%clk 0:00:10]}  Qc3 {[%clk 0:00:54]} 33. Bf2 {[%clk 0:00:10]}  Rxd4 {[%clk 0:00:52]} 34. Bxd4 {[%clk 0:00:09]}  Qxd4+ {[%clk 0:00:52]} 35. Kh2 {[%clk 0:00:10]}  Bb4 {[%clk 0:00:51]} 36. Qc2 {[%clk 0:00:07]}  Qc3 {[%clk 0:00:50]} 37. Qxc3 {[%clk 0:00:06]}  Bxc3 {[%clk 0:00:50]} 38. Nb3 {[%clk 0:00:07]}  a5 {[%clk 0:00:47]} 39. Nc1 {[%clk 0:00:08]}  b4 {[%clk 0:00:46]} 40. Ne2 {[%clk 0:00:08]}  Ba6 {[%clk 0:00:45]} 41. Nxc3 {[%clk 0:00:06]}  bxc3 {[%clk 0:00:44]} 42. Bf3 {[%clk 0:00:06]}  c2 {[%clk 0:00:44]} 0-1


[Site "https://www.chess.com"]